fUSD/lending_fUSD_20260701
["ID","MTS","AMOUNT","RATE_DAILY","PERIOD"]
[426801300,1782839445000,-110563.92678822,0.0003009,2]
[426801306,1782839445000,-232.47,0.000301,14]
[426801302,1782839445000,-171.63594645,0.000301,2]
[426801303,1782839445000,-15000.0,0.000301,2]
[426801308,1782839445000,-12500.0,0.00030125,2]
[426801304,1782839445000,-644.57,0.000301,7]
[426801305,1782839445000,-59890.5378768,0.000301,7]
[426801301,1782839445000,-3344.57093542,0.00030098,2]
[426801297,1782839445000,-1000.0,0.0003007,2]
[426801309,1782839445000,-1099.42825805,0.0003013,2]
[426801310,1782839445000,-14184.61816244,0.0003013,2]
[426801315,1782839445000,-303.86090266,0.0003013,2]
[426801312,1782839445000,-206.46996096,0.0003013,2]
[426801313,1782839445000,-482.4145305,0.0003013,2]
[426801316,1782839445000,-1926.94300417,0.0003013,2]
[426801311,1782839445000,-649.26184439,0.0003013,2]
[426801314,1782839445000,-171.92442809,0.0003013,20]
[426801317,1782839445000,-30156.79940146,0.0003013,2]
[426801319,1782839445000,-500.0,0.00030136,2]
[426801329,1782839445000,-500.0,0.00030136,2]
[426801307,1782839445000,-12500.0,0.00030125,2]
[426801385,1782839446000,-500.0,0.00030136,2]
[426801386,1782839446000,-500.0,0.00030136,2]
[426801384,1782839446000,-500.0,0.00030136,2]
[426801381,1782839446000,-500.0,0.00030136,2]
[426801383,1782839446000,-500.0,0.00030136,2]
[426801378,1782839446000,-500.0,0.00030136,2]
[426801380,1782839446000,-500.0,0.00030136,2]
[426801382,1782839446000,-500.0,0.00030136,2]
[426801387,1782839446000,-500.0,0.00030136,2]
[426801393,1782839446000,-500.0,0.00030136,2]
[426801391,1782839446000,-192.99813208,0.00030136,2]
[426801390,1782839446000,-500.0,0.00030136,2]
[426801389,1782839446000,-500.0,0.00030136,2]
[426801392,1782839446000,-500.0,0.00030136,2]
[426801395,1782839446000,-500.0,0.00030136,2]
[426801394,1782839446000,-500.0,0.00030136,2]
[426801397,1782839446000,-500.0,0.00030136,2]
[426801399,1782839446000,-500.0,0.00030136,2]
[426801379,1782839446000,-500.0,0.00030136,2]
[426801396,1782839446000,-500.0,0.00030136,2]
[426801388,1782839446000,-500.0,0.00030136,2]
[426801377,1782839446000,-500.0,0.00030136,2]
[426801359,1782839446000,-500.0,0.00030136,2]
[426801373,1782839446000,-638.1099584,0.00030136,2]
[426801398,1782839446000,-500.0,0.00030136,2]
[426801354,1782839446000,-500.0,0.00030136,15]
[426801356,1782839446000,-500.0,0.00030136,15]
[426801355,1782839446000,-500.0,0.00030136,15]
[426801357,1782839446000,-486.149978,0.00030136,15]
[426801358,1782839446000,-500.0,0.00030136,2]
[426801365,1782839446000,-500.0,0.00030136,2]
[426801362,1782839446000,-500.0,0.00030136,2]
[426801361,1782839446000,-500.0,0.00030136,2]
[426801360,1782839446000,-500.0,0.00030136,2]
[426801364,1782839446000,-500.0,0.00030136,2]
[426801363,1782839446000,-500.0,0.00030136,2]
[426801366,1782839446000,-500.0,0.00030136,2]
[426801367,1782839446000,-500.0,0.00030136,2]
[426801371,1782839446000,-500.0,0.00030136,2]
[426801375,1782839446000,-500.0,0.00030136,2]
[426801370,1782839446000,-500.0,0.00030136,2]
[426801369,1782839446000,-500.0,0.00030136,2]
[426801374,1782839446000,-500.0,0.00030136,2]
[426801368,1782839446000,-500.0,0.00030136,2]
[426801372,1782839446000,-500.0,0.00030136,2]
[426801376,1782839446000,-500.0,0.00030136,2]
[426801400,1782839446000,-341.69563579,0.00030136,2]
[426801429,1782839446000,-1000.0,0.00030136,2]
[426801404,1782839446000,-1000.0,0.00030136,2]
[426801427,1782839446000,-1000.0,0.00030136,2]
[426801431,1782839446000,-1000.0,0.00030136,2]
[426801430,1782839446000,-1000.0,0.00030136,2]
[426801432,1782839446000,-1000.0,0.00030136,2]
[426801434,1782839446000,-1000.0,0.00030136,2]
[426801435,1782839446000,-1000.0,0.00030136,2]
[426801436,1782839446000,-1000.0,0.00030136,2]
[426801433,1782839446000,-1000.0,0.00030136,2]
[426801438,1782839446000,-1000.0,0.00030136,2]
[426801440,1782839446000,-1000.0,0.00030136,2]
[426801439,1782839446000,-1000.0,0.00030136,2]
[426801437,1782839446000,-1000.0,0.00030136,2]
[426801443,1782839446000,-1000.0,0.00030136,2]
[426801445,1782839446000,-1000.0,0.00030136,2]
[426801442,1782839446000,-1000.0,0.00030136,2]
[426801444,1782839446000,-1000.0,0.00030136,2]
[426801448,1782839446000,-1000.0,0.00030136,2]
[426801447,1782839446000,-1000.0,0.00030136,2]
[426801449,1782839446000,-1000.0,0.00030136,2]
[426801446,1782839446000,-1000.0,0.00030136,2]
[426801405,1782839446000,-1000.0,0.00030136,2]
[426801428,1782839446000,-1000.0,0.00030136,2]
[426801423,1782839446000,-1000.0,0.00030136,2]
[426801441,1782839446000,-1000.0,0.00030136,2]
[426801422,1782839446000,-1000.0,0.00030136,2]
[426801424,1782839446000,-1000.0,0.00030136,2]
[426801401,1782839446000,-1000.0,0.00030136,2]
[426801402,1782839446000,-1000.0,0.00030136,2]
[426801403,1782839446000,-1000.0,0.00030136,2]
[426801406,1782839446000,-1000.0,0.00030136,2]
[426801408,1782839446000,-1000.0,0.00030136,2]
[426801414,1782839446000,-1000.0,0.00030136,2]
[426801411,1782839446000,-1000.0,0.00030136,2]
[426801409,1782839446000,-1000.0,0.00030136,2]
[426801415,1782839446000,-1000.0,0.00030136,2]
[426801410,1782839446000,-1000.0,0.00030136,2]
[426801413,1782839446000,-1000.0,0.00030136,2]
[426801420,1782839446000,-1000.0,0.00030136,2]
[426801412,1782839446000,-1000.0,0.00030136,2]
[426801425,1782839446000,-1000.0,0.00030136,2]
[426801421,1782839446000,-1000.0,0.00030136,2]
[426801419,1782839446000,-1000.0,0.00030136,2]
[426801426,1782839446000,-1000.0,0.00030136,2]
[426801417,1782839446000,-1000.0,0.00030136,2]
[426801407,1782839446000,-1000.0,0.00030136,2]
[426801416,1782839446000,-1000.0,0.00030136,2]
[426801418,1782839446000,-1000.0,0.00030136,2]
[426801466,1782839447000,-1000.0,0.00030136,2]
[426801468,1782839447000,-1000.0,0.00030136,2]
[426801471,1782839447000,-1000.0,0.00030136,2]
[426801472,1782839447000,-1000.0,0.00030136,2]
[426801469,1782839447000,-1000.0,0.00030136,2]
[426801475,1782839447000,-1000.0,0.00030136,2]
[426801477,1782839447000,-1000.0,0.00030136,2]
[426801485,1782839447000,-1000.0,0.00030136,2]
[426801473,1782839447000,-1000.0,0.00030136,2]
[426801476,1782839447000,-1000.0,0.00030136,2]
[426801479,1782839447000,-1000.0,0.00030136,2]
[426801474,1782839447000,-1000.0,0.00030136,2]
[426801464,1782839447000,-1000.0,0.00030136,2]
[426801453,1782839447000,-1000.0,0.00030136,2]
[426801462,1782839447000,-1000.0,0.00030136,2]
[426801463,1782839447000,-1000.0,0.00030136,2]
[426801461,1782839447000,-1000.0,0.00030136,2]
[426801459,1782839447000,-1000.0,0.00030136,2]
[426801460,1782839447000,-1000.0,0.00030136,2]
[426801458,1782839447000,-1000.0,0.00030136,2]
[426801455,1782839447000,-1000.0,0.00030136,2]
[426801456,1782839447000,-1000.0,0.00030136,2]
[426801457,1782839447000,-1000.0,0.00030136,2]
[426801454,1782839447000,-1000.0,0.00030136,2]
[426801452,1782839447000,-1000.0,0.00030136,2]
[426801450,1782839447000,-1000.0,0.00030136,2]
[426801451,1782839447000,-1000.0,0.00030136,2]
[426801478,1782839447000,-1000.0,0.00030136,2]
[426801465,1782839447000,-1000.0,0.00030136,2]
[426801481,1782839447000,-1000.0,0.00030136,2]
[426801486,1782839447000,-1000.0,0.00030136,2]
[426801480,1782839447000,-1000.0,0.00030136,2]
[426801482,1782839447000,-1000.0,0.00030136,2]
[426801512,1782839447000,-680.64,0.00030137,30]
[426801511,1782839447000,-502.17695646,0.00030137,2]
[426801508,1782839447000,-500.0,0.00030137,3]
[426801506,1782839447000,-509.52029791,0.00030137,2]
[426801510,1782839447000,-223.14570249,0.00030137,30]
[426801507,1782839447000,-180.54994469,0.00030137,120]
[426801505,1782839447000,-254.76014895,0.00030137,2]
[426801502,1782839447000,-1000.0,0.00030136,2]
[426801503,1782839447000,-150.0,0.00030137,2]
[426801501,1782839447000,-1000.0,0.00030136,2]
[426801499,1782839447000,-1000.0,0.00030136,2]
[426801504,1782839447000,-722.56,0.00030137,2]
[426801500,1782839447000,-1000.0,0.00030136,2]
[426801509,1782839447000,-500.0,0.00030137,3]
[426801496,1782839447000,-1000.0,0.00030136,2]
[426801484,1782839447000,-1000.0,0.00030136,2]
[426801498,1782839447000,-1000.0,0.00030136,2]
[426801483,1782839447000,-1000.0,0.00030136,2]
[426801487,1782839447000,-1000.0,0.00030136,2]
[426801491,1782839447000,-1000.0,0.00030136,2]
[426801489,1782839447000,-1000.0,0.00030136,2]
[426801490,1782839447000,-1000.0,0.00030136,2]
[426801488,1782839447000,-1000.0,0.00030136,2]
[426801492,1782839447000,-1000.0,0.00030136,2]
[426801493,1782839447000,-1000.0,0.00030136,2]
[426801495,1782839447000,-1000.0,0.00030136,2]
[426801494,1782839447000,-1000.0,0.00030136,2]
[426801497,1782839447000,-1000.0,0.00030136,2]
[426801543,1782839448000,-3735.93121827,0.0003014,4]
[426801541,1782839448000,-3735.93121827,0.0003014,4]
[426801540,1782839448000,-3735.93121827,0.0003014,4]
[426801542,1782839448000,-3735.93121827,0.0003014,4]
[426801545,1782839448000,-3735.93121827,0.0003014,4]
[426801544,1782839448000,-3735.93121827,0.0003014,4]
[426801538,1782839448000,-3735.93121827,0.0003014,4]
[426801546,1782839448000,-3735.93121827,0.0003014,4]
[426801554,1782839448000,-3735.93121827,0.0003014,4]
[426801548,1782839448000,-3735.93121827,0.0003014,4]
[426801549,1782839448000,-3735.93121827,0.0003014,4]
[426801551,1782839448000,-3735.93121827,0.0003014,4]
[426801550,1782839448000,-3735.93121827,0.0003014,4]
[426801552,1782839448000,-3735.93121827,0.0003014,4]
[426801555,1782839448000,-3735.93121827,0.0003014,4]
[426801537,1782839448000,-1601.11,0.0003014,4]
[426801547,1782839448000,-3735.93121827,0.0003014,4]
[426801539,1782839448000,-3735.93121827,0.0003014,4]
[426801553,1782839448000,-3735.93121827,0.0003014,4]
[426801536,1782839448000,-1601.11337926,0.0003014,4]
[426801515,1782839448000,-1601.11337926,0.0003014,4]
[426801517,1782839448000,-1601.11337926,0.0003014,4]
[426801513,1782839448000,-1601.11337926,0.0003014,4]
[426801514,1782839448000,-1601.11337926,0.0003014,4]
[426801519,1782839448000,-1601.11337926,0.0003014,4]
[426801521,1782839448000,-1601.11337926,0.0003014,4]
[426801527,1782839448000,-1601.11337926,0.0003014,4]
[426801523,1782839448000,-1601.11337926,0.0003014,4]
[426801526,1782839448000,-1601.11337926,0.0003014,4]
[426801524,1782839448000,-1601.11337926,0.0003014,4]
[426801528,1782839448000,-1601.11337926,0.0003014,4]
[426801530,1782839448000,-1601.11337926,0.0003014,4]
[426801529,1782839448000,-1601.11337926,0.0003014,4]
[426801532,1782839448000,-1601.11337926,0.0003014,4]
[426801533,1782839448000,-1601.11337926,0.0003014,4]
[426801531,1782839448000,-1601.11337926,0.0003014,4]
[426801534,1782839448000,-1601.11337926,0.0003014,4]
[426801535,1782839448000,-1601.11337926,0.0003014,4]
[426801557,1782839448000,-3735.93,0.0003014,4]
[426801592,1782839448000,-1187.87959277,0.0003014,4]
[426801558,1782839448000,-509.09125404,0.0003014,4]
[426801584,1782839448000,-1187.87959277,0.0003014,4]
[426801581,1782839448000,-1187.87959277,0.0003014,4]
[426801585,1782839448000,-1187.87959277,0.0003014,4]
[426801582,1782839448000,-1187.87959277,0.0003014,4]
[426801580,1782839448000,-1187.87959277,0.0003014,4]
[426801583,1782839448000,-1187.87959277,0.0003014,4]
[426801586,1782839448000,-1187.87959277,0.0003014,4]
[426801587,1782839448000,-1187.87959277,0.0003014,4]
[426801591,1782839448000,-1187.87959277,0.0003014,4]
[426801588,1782839448000,-1187.87959277,0.0003014,4]
[426801593,1782839448000,-1187.87959277,0.0003014,4]
[426801590,1782839448000,-1187.87959277,0.0003014,4]
[426801589,1782839448000,-1187.87959277,0.0003014,4]
[426801596,1782839448000,-1187.87959277,0.0003014,4]
[426801594,1782839448000,-1187.87959277,0.0003014,4]
[426801597,1782839448000,-1187.87,0.0003014,4]
[426801560,1782839448000,-509.09125404,0.0003014,4]
[426801579,1782839448000,-1187.87959277,0.0003014,4]
[426801577,1782839448000,-509.09,0.0003014,4]
[426801595,1782839448000,-1187.87959277,0.0003014,4]
[426801575,1782839448000,-509.09125404,0.0003014,4]
[426801578,1782839448000,-1187.87959277,0.0003014,4]
[426801559,1782839448000,-509.09125404,0.0003014,4]
[426801563,1782839448000,-509.09125404,0.0003014,4]
[426801565,1782839448000,-509.09125404,0.0003014,4]
[426801564,1782839448000,-509.09125404,0.0003014,4]
[426801562,1782839448000,-509.09125404,0.0003014,4]
[426801561,1782839448000,-509.09125404,0.0003014,4]
[426801567,1782839448000,-509.09125404,0.0003014,4]
[426801556,1782839448000,-3735.93121827,0.0003014,4]
[426801569,1782839448000,-509.09125404,0.0003014,4]
[426801570,1782839448000,-509.09125404,0.0003014,4]
[426801566,1782839448000,-509.09125404,0.0003014,4]
[426801568,1782839448000,-509.09125404,0.0003014,4]
[426801574,1782839448000,-509.09125404,0.0003014,4]
[426801572,1782839448000,-509.09125404,0.0003014,4]
[426801573,1782839448000,-509.09125404,0.0003014,4]
[426801571,1782839448000,-509.09125404,0.0003014,4]
[426801576,1782839448000,-509.09125404,0.0003014,4]
[426801616,1782839449000,-1124.80656914,0.0003014,4]
[426801617,1782839449000,-1124.8,0.0003014,4]
[426801618,1782839449000,-2624.54866133,0.0003014,4]
[426801619,1782839449000,-2624.54866133,0.0003014,4]
[426801620,1782839449000,-2624.54866133,0.0003014,4]
[426801621,1782839449000,-2624.54866133,0.0003014,4]
[426801624,1782839449000,-2624.54866133,0.0003014,4]
[426801623,1782839449000,-2624.54866133,0.0003014,4]
[426801625,1782839449000,-2624.54866133,0.0003014,4]
[426801626,1782839449000,-2624.54866133,0.0003014,4]
[426801627,1782839449000,-2624.54866133,0.0003014,4]
[426801628,1782839449000,-2624.54866133,0.0003014,4]
[426801615,1782839449000,-1124.80656914,0.0003014,4]
[426801629,1782839449000,-2624.54866133,0.0003014,4]
[426801622,1782839449000,-2624.54866133,0.0003014,4]
[426801614,1782839449000,-1124.80656914,0.0003014,4]
[426801604,1782839449000,-1124.80656914,0.0003014,4]
[426801612,1782839449000,-1124.80656914,0.0003014,4]
[426801630,1782839449000,-2624.54866133,0.0003014,4]
[426801599,1782839449000,-1124.80656914,0.0003014,4]
[426801598,1782839449000,-1124.80656914,0.0003014,4]
[426801602,1782839449000,-1124.80656914,0.0003014,4]
[426801600,1782839449000,-1124.80656914,0.0003014,4]
[426801601,1782839449000,-1124.80656914,0.0003014,4]
[426801613,1782839449000,-1124.80656914,0.0003014,4]
[426801603,1782839449000,-1124.80656914,0.0003014,4]
[426801607,1782839449000,-1124.80656914,0.0003014,4]
[426801609,1782839449000,-1124.80656914,0.0003014,4]
[426801608,1782839449000,-1124.80656914,0.0003014,4]
[426801610,1782839449000,-1124.80656914,0.0003014,4]
[426801605,1782839449000,-1124.80656914,0.0003014,4]
[426801611,1782839449000,-1124.80656914,0.0003014,4]
[426801606,1782839449000,-1124.80656914,0.0003014,4]
[426801632,1782839449000,-2624.54866133,0.0003014,4]
[426801635,1782839449000,-2624.54866133,0.0003014,4]
[426801660,1782839449000,-542.334672,0.0003025,7]
[426801654,1782839449000,-1072.449619,0.000302,7]
[426801655,1782839449000,-12500.0,0.0003025,2]
[426801657,1782839449000,-12500.0,0.0003025,2]
[426801658,1782839449000,-12500.0,0.0003025,2]
[426801656,1782839449000,-25000.0,0.0003025,2]
[426801659,1782839449000,-12500.0,0.0003025,2]
[426801652,1782839449000,-1072.449619,0.000302,7]
[426801665,1782839449000,-4669.346111,0.0003025,7]
[426801666,1782839449000,-4669.346111,0.0003025,7]
[426801662,1782839449000,-542.334672,0.0003025,7]
[426801661,1782839449000,-542.334672,0.0003025,7]
[426801663,1782839449000,-542.334672,0.0003025,7]
[426801667,1782839449000,-4669.346111,0.0003025,7]
[426801636,1782839449000,-2624.54866133,0.0003014,4]
[426801664,1782839449000,-151.0,0.0003025,7]
[426801651,1782839449000,-1072.449619,0.000302,7]
[426801653,1782839449000,-1072.449619,0.000302,7]
[426801650,1782839449000,-15874.28330803,0.000302,2]
[426801631,1782839449000,-2624.54866133,0.0003014,4]
[426801634,1782839449000,-2624.54866133,0.0003014,4]
[426801633,1782839449000,-2624.54866133,0.0003014,4]
[426801637,1782839449000,-2624.54,0.0003014,4]
[426801638,1782839449000,-177.230748,0.0003014,7]
[426801649,1782839449000,-559.42,0.000302,2]
[426801639,1782839449000,-155.04098883,0.00030195,2]
[426801642,1782839449000,-502.01,0.000302,2]
[426801640,1782839449000,-15000.0,0.000302,2]
[426801643,1782839449000,-502.02,0.000302,2]
[426801645,1782839449000,-559.41,0.000302,2]
[426801644,1782839449000,-559.41,0.000302,2]
[426801647,1782839449000,-559.41,0.000302,2]
[426801648,1782839449000,-559.41,0.000302,2]
[426801646,1782839449000,-559.41,0.000302,2]
[426801641,1782839449000,-404.88,0.000302,2]
[426801689,1782839450000,-2163.35,0.00030458,7]
[426801695,1782839450000,-800.0,0.000305,2]
[426801691,1782839450000,-15000.0,0.000305,2]
[426801690,1782839450000,-12500.0,0.000305,2]
[426801692,1782839450000,-12500.0,0.000305,2]
[426801694,1782839450000,-12500.0,0.000305,2]
[426801693,1782839450000,-800.0,0.000305,2]
[426801696,1782839450000,-800.0,0.000305,2]
[426801701,1782839450000,-680.64,0.00030558,30]
[426801697,1782839450000,-403.52617078,0.00030521,2]
[426801699,1782839450000,-155.0,0.00030554,30]
[426801700,1782839450000,-166.0,0.00030554,30]
[426801705,1782839450000,-171.63594645,0.00030648,2]
[426801703,1782839450000,-599.0,0.00030622,30]
[426801706,1782839450000,-10000.0,0.00030667,2]
[426801688,1782839450000,-667.0,0.00030425,5]
[426801698,1782839450000,-500.0,0.0003055,2]
[426801686,1782839450000,-278.39761007,0.00030411,60]
[426801670,1782839450000,-222.884734,0.0003025,7]
[426801682,1782839450000,-1581.515186,0.00030375,7]
[426801668,1782839450000,-4669.346111,0.0003025,7]
[426801669,1782839450000,-222.884734,0.0003025,7]
[426801671,1782839450000,-222.884734,0.0003025,7]
[426801672,1782839450000,-222.884734,0.0003025,7]
[426801674,1782839450000,-10000.0,0.00030333,2]
[426801673,1782839450000,-15000.0,0.000303,2]
[426801675,1782839450000,-3558.81,0.00030333,2]
[426801687,1782839450000,-859.10067634,0.00030411,2]
[426801676,1782839450000,-160.0,0.00030336,3]
[426801679,1782839450000,-12500.0,0.00030375,2]
[426801678,1782839450000,-171.63594645,0.00030374,2]
[426801680,1782839450000,-1581.515186,0.00030375,7]
[426801684,1782839450000,-15000.0,0.000304,2]
[426801681,1782839450000,-1581.515186,0.00030375,7]
[426801683,1782839450000,-1581.515186,0.00030375,7]
[426801685,1782839450000,-162.22,0.00030411,120]
[426801677,1782839450000,-150.0,0.0003035,2]
[426801702,1782839450000,-172.0,0.00030622,30]
[426801740,1782839450000,-155.04098883,0.00030941,2]
[426801707,1782839450000,-1278.14506698,0.00030667,2]
[426801728,1782839450000,-681.0,0.00030894,5]
[426801730,1782839450000,-520521.2114395,0.00030904,2]
[426801729,1782839450000,-644.57,0.000309,7]
[426801733,1782839450000,-1328.1432804,0.00030904,2]
[426801731,1782839450000,-1243.6035403,0.00030904,2]
[426801732,1782839450000,-3558.4096505,0.00030904,2]
[426801735,1782839450000,-2516.482005,0.00030904,2]
[426801727,1782839450000,-664.0,0.00030894,5]
[426801736,1782839450000,-3235.2413336,0.00030904,2]
[426801737,1782839450000,-847.9592709,0.00030904,2]
[426801741,1782839450000,-680.64,0.0003098,30]
[426801738,1782839450000,-56473.3477561,0.00030904,2]
[426801742,1782839450000,-13000.0,0.00031,2]
[426801739,1782839450000,-171.63594645,0.00030922,2]
[426801704,1782839450000,-12500.0,0.00030625,2]
[426801743,1782839450000,-12500.0,0.00031,2]
[426801734,1782839450000,-13152.2095697,0.00030904,2]
[426801725,1782839450000,-672.0,0.00030884,5]
[426801744,1782839450000,-10000.0,0.00031,2]
[426801718,1782839450000,-12499.99,0.0003075,2]
[426801726,1782839450000,-686.0,0.00030894,5]
[426801714,1782839450000,-208.37591814,0.00030691,2]
[426801711,1782839450000,-1913.80705789,0.00030667,2]
[426801708,1782839450000,-1255.96502747,0.00030667,2]
[426801709,1782839450000,-1969.07204984,0.00030667,2]
[426801710,1782839450000,-2343.56426898,0.00030667,2]
[426801713,1782839450000,-2150.04285234,0.00030667,2]
[426801717,1782839450000,-12500.0,0.0003075,2]
[426801712,1782839450000,-1341.76358796,0.00030667,2]
[426801719,1782839450000,-12500.0,0.0003075,2]
[426801721,1782839450000,-1779.93582911,0.00030823,2]
[426801716,1782839450000,-504.0,0.00030709,5]
[426801724,1782839450000,-1645.5292062,0.0003084,2]
[426801723,1782839450000,-1628.15012197,0.00030823,2]
[426801722,1782839450000,-1436.97529143,0.00030823,2]
[426801715,1782839450000,-168.68246232,0.000307,8]
[426801720,1782839450000,-1445.83004949,0.00030823,2]
[426801772,1782839451000,-800.0,0.000315,2]
[426801770,1782839451000,-12500.0,0.000315,2]
[426801763,1782839451000,-507.21051793,0.00031376,2]
[426801765,1782839451000,-2163.35,0.00031409,14]
[426801766,1782839451000,-504.0,0.00031423,6]
[426801768,1782839451000,-171.63594645,0.0003147,2]
[426801767,1782839451000,-507.21051793,0.00031426,2]
[426801774,1782839451000,-150.0,0.000315,2]
[426801771,1782839451000,-201.72212327,0.000315,2]
[426801776,1782839451000,-214.89864617,0.000315,2]
[426801773,1782839451000,-800.0,0.000315,2]
[426801775,1782839451000,-5050.7266,0.000315,2]
[426801778,1782839451000,-189.79450998,0.00031507,15]
[426801764,1782839451000,-680.64,0.00031401,30]
[426801779,1782839451000,-1064.51082826,0.00031507,30]
[426801769,1782839451000,-507.21051793,0.00031485,2]
[426801761,1782839451000,-150.0,0.0003135,2]
[426801754,1782839451000,-171.63594645,0.00031196,2]
[426801762,1782839451000,-507.21051793,0.00031355,2]
[426801777,1782839451000,-159.69987068,0.00031507,2]
[426801745,1782839451000,-800.0,0.00031,2]
[426801746,1782839451000,-12500.0,0.00031,2]
[426801748,1782839451000,-129709.39201996,0.00031,2]
[426801752,1782839451000,-150.0,0.00031011,2]
[426801751,1782839451000,-10832.37937155,0.00031,2]
[426801747,1782839451000,-800.0,0.00031,2]
[426801749,1782839451000,-800.0,0.00031,2]
[426801750,1782839451000,-1000.0,0.00031,7]
[426801757,1782839451000,-12499.98,0.0003125,2]
[426801756,1782839451000,-12500.0,0.0003125,2]
[426801753,1782839451000,-893.25,0.00031014,2]
[426801755,1782839451000,-1000.0,0.00031203,30]
[426801758,1782839451000,-426.5,0.0003125,14]
[426801759,1782839451000,-152.0,0.00031268,4]
[426801760,1782839451000,-372.0,0.00031342,3]
[426801780,1782839451000,-507.21051793,0.00031525,2]
[426801788,1782839451000,-599.0,0.00031622,30]
[426801781,1782839451000,-173.02,0.00031538,2]
[426801800,1782839451000,-192.0,0.00031877,2]
[426801802,1782839451000,-221.93,0.00031898,60]
[426801805,1782839451000,-1337.75033167,0.00031919,2]
[426801806,1782839451000,-507.21051793,0.00031932,2]
[426801804,1782839451000,-39772.74136849,0.000319,7]
[426801808,1782839451000,-1000.0,0.0003195,2]
[426801809,1782839451000,-1000.0,0.0003195,2]
[426801807,1782839451000,-1000.0,0.0003195,2]
[426801810,1782839451000,-1000.0,0.0003195,2]
[426801812,1782839451000,-1000.0,0.0003195,2]
[426801813,1782839451000,-1597.14,0.0003195,2]
[426801818,1782839451000,-800.0,0.00032,5]
[426801816,1782839451000,-12142.17,0.00032,2]
[426801815,1782839451000,-507.21051793,0.00031986,2]
[426801782,1782839451000,-216.58,0.00031538,3]
[426801799,1782839451000,-680.64,0.00031823,30]
[426801796,1782839451000,-507.21051793,0.00031782,2]
[426801811,1782839451000,-1000.0,0.0003195,2]
[426801798,1782839451000,-507.21051793,0.00031821,2]
[426801784,1782839451000,-155.0,0.00031554,30]
[426801801,1782839451000,-507.21051793,0.00031886,2]
[426801783,1782839451000,-500.0,0.0003155,2]
[426801785,1782839451000,-166.0,0.00031554,30]
[426801786,1782839451000,-507.21051793,0.00031597,2]
[426801790,1782839451000,-1000.0,0.00031656,2]
[426801789,1782839451000,-151.0,0.00031646,2]
[426801787,1782839451000,-172.0,0.00031622,30]
[426801817,1782839451000,-781.6051,0.00032,2]
[426801792,1782839451000,-507.21051793,0.00031712,2]
[426801794,1782839451000,-171.63594645,0.00031744,2]
[426801795,1782839451000,-12500.0,0.0003175,2]
[426801803,1782839451000,-221.92,0.00031898,60]
[426801793,1782839451000,-507.21051793,0.00031712,2]
[426801791,1782839451000,-155.04098883,0.00031688,2]
[426801797,1782839451000,-644.57,0.000318,7]
[426801872,1782839452000,-173.75,0.00032744,2]
[426801873,1782839452000,-187.87909031,0.00032746,10]
[426801871,1782839452000,-507.21051793,0.00032729,2]
[426801881,1782839452000,-153.0,0.00032838,7]
[426801863,1782839452000,-214.91,0.00032563,3]
[426801866,1782839452000,-165.51889469,0.0003262,2]
[426801868,1782839452000,-599.0,0.00032622,30]
[426801874,1782839452000,-507.21051793,0.0003275,2]
[426801864,1782839452000,-644.57,0.000326,7]
[426801870,1782839452000,-277.83455752,0.00032691,7]
[426801875,1782839452000,-151.0,0.00032762,2]
[426801887,1782839452000,-370.74111981,0.00032876,2]
[426801877,1782839452000,-200.0,0.00032823,2]
[426801879,1782839452000,-153.0,0.00032838,7]
[426801880,1782839452000,-153.0,0.00032838,7]
[426801882,1782839452000,-48251.8728333,0.00032848,5]
[426801885,1782839452000,-507.21051793,0.00032868,2]
[426801889,1782839452000,-500.0,0.00032876,2]
[426801884,1782839452000,-507.21051793,0.00032857,2]
[426801883,1782839452000,-504.0,0.00032852,8]
[426801891,1782839452000,-500.0,0.00032876,2]
[426801888,1782839452000,-345.86085129,0.00032876,2]